Cogmind - Beta 15 @@@ ROGUE MODE // 2025.06.27 @ 04:57:19 Player: CheifClapdad Result: Destroyed by G-50 Soldier with Heavy Laser Performance ------------- Evolutions (5) 2500 Regions Visited (6) 1200 Robots Destroyed (60) 300 Value Destroyed (1791) 1791 Prototype IDs (1) 20 Alien Tech Used (0) 0 Bonus (800) 800 TOTAL SCORE: 6611 Bonus ------- Registered with UFD 300 Met Optimus in HQ 500 Cogmind --------- Core Integrity 0/1000 Matter 256/300 Energy 300/300 System Corruption 15% Temperature Cool (9) Movement Core (250) Ox4 Location -5/Factory Parts ------- > --- POWER (1) -------- Angular Momentum Engine > --- PROPULSION (5) --- (None) > --- UTILITY (8) ------ (None) > --- WEAPON (3) ------- (None) > --- INVENTORY (5) ---- Nuclear Core Improved Weapon Cycler Hypervelocity Gauss Rifle Mini Grenade Launcher Long-range Missile Launcher Peak State ------------ > --- POWER ------------ Cold Fusion Reactor > --- PROPULSION ------- Armored Treads Advanced Treads Advanced Treads Armored Huge Wheel > --- UTILITY ---------- Huge Storage Unit IFF Parser Target Analyzer Layered Medium Armor Plating Layered Medium Armor Plating Shield Generator Advanced Hacking Suite High-powered Tractor Beam > --- WEAPON ----------- Gauss Rifle Heavy Flak Cannon Heavy Flak Cannon > --- INVENTORY -------- Ion Engine Nuclear Core Micro Nuclear Core Light Treads Light Treads Wheel Huge Storage Unit Small Matter Pod Small Matter Pod Improved Terrain Scanner Layered Medium Armor Plating Layered Medium Armor Plating Heavy Assault Rifle Flak Gun Hypervelocity Gauss Rifle Advanced Assault Cannon Magnetic Acceleration Cannon Heavy Flak Cannon Heavy Flak Cannon Grenade Launcher Mini Grenade Launcher Long-range Missile Launcher CPS Tube CPS Tube CPS Tube [Rating: 74] Favorites ----------- Power Light Ion Engine Engine Light Ion Engine Power Core Nuclear Core Reactor Cold Fusion Reactor Propulsion Advanced Treads Treads Advanced Treads Wheel Compact Wheel Hover Unit Antigrav System Utility Huge Storage Unit Device Improved Shield Generator Storage Huge Storage Unit Processor Target Analyzer Hackware Advanced Hacking Suite Protection Hardened Heavy Armor Plating Weapon Heavy Assault Rifle Energy Gun EM Pulse Gun Energy Cannon Advanced Plasma Cannon Ballistic Gun Heavy Assault Rifle Ballistic Cannon Heavy Flak Cannon Launcher Mini Grenade Launcher Build | -11 -10 -10 -8 -8 -6 -5 ------- Run | Yrd Mat Sub Rec Scr Fac Fac Slots Evolved 10 | . . . . . 8 2 Power . | . . . . . . . Propulsion 3 | . . . . . 3 . Utility 6 | . . . . . 4 2 Weapon 1 | . . . . . 1 . Parts Attached 63 | 6 6 4 7 4 20 16 Power 7 | 1 . 1 1 1 1 2 Engine 5 | 1 . 1 1 . . 2 Core 1 | . . . . 1 . . Reactor 1 | . . . . . 1 . Propulsion 16 | 2 2 1 1 2 4 4 Treads 6 | 1 . . . 1 3 1 Leg . | . . . . . . . Wheel 8 | 1 2 1 1 1 1 1 Hover 2 | . . . . . . 2 Flight . | . . . . . . . Utility 15 | 1 2 . 1 1 5 5 Device 6 | . 1 . 1 1 2 1 Storage 3 | 1 1 . . . . 1 Processor 1 | . . . . . 1 . Hackware 1 | . . . . . . 1 Protection 4 | . . . . . 2 2 Artifact . | . . . . . . . Weapon 25 | 2 2 2 4 . 10 5 Energy Gun 4 | 1 . . 1 . . 2 Energy Cannon 1 | . . . . . . 1 Ballistic Gun 11 | 1 1 2 3 . 3 1 Ballistic Cannon 6 | . . . . . 5 1 Launcher 3 | . 1 . . . 2 . Special Weapon . | . . . . . . . Impact Weapon . | . . . . . . . Slashing Weapon . | . . . . . . . Piercing Weapon . | . . . . . . . Special Melee Weapon . | . . . . . . . Unidentified Prototypes 1 | . . . . . 1 . Corrupted Parts 1 | . . . . . 1 . System Corruption 8 | . . . . . 8 . Parts Lost 36 | . 3 5 5 . 5 18 Power 4 | . . 2 . . . 2 Propulsion 11 | . 1 1 2 . 1 6 Utility 9 | . 1 . . . 2 6 Weapon 12 | . 1 2 3 . 2 4 Highest Loss Streak 15 | . 2 2 3 . 2 15 To Critical Strikes . | . . . . . . . Average Backups 17 | 2 9 23 18 18 21 11 Power 3 | . 3 8 7 2 2 1 Propulsion 3 | 1 2 6 5 4 2 . Utility 4 | . 1 4 4 6 6 2 Weapon 3 | . 1 3 2 3 6 5 Tool/Special . | . . . . . . . Unused Backups 19 | . 1 . . 7 1 10 Power 7 | . . . . 5 1 1 Propulsion 2 | . . . . 2 . . Utility 5 | . 1 . . . . 4 Weapon 2 | . . . . . . 2 Tool/Special 3 | . . . . . . 3 Average Slot Usage (%) 82 | . 88 82 82 99 80 37 Engine 8 | . 14 12 13 10 . 1 Core 1 | . . . . 3 3 . Treads 8 | . 1 . . 12 19 5 Wheel 13 | . 25 26 17 14 6 1 Device 10 | . 4 . 10 14 10 5 Storage 10 | . 14 14 14 14 6 1 Protection 1 | . . . . . 5 3 Ballistic Gun 20 | . 24 28 24 28 9 2 Ballistic Cannon 2 | . . . . . 8 3 Peak Build Rating 74 | 6 8 9 11 21 63 74 Average Rating 22 | 5 6 8 9 17 51 31 On Entrance 16 | . 6 8 6 11 19 63 Naked Turns 159 | . . . . . . 159 Heaviest Build 132 | 14 89 88 91 97 132 132 Greatest Support 66 | 20 20 20 26 26 66 64 Greatest Overweight (x) 8 | . 8 8 5 6 6 4 Average Overweight (x) 3 | . 3 4 4 5 3 . Largest Inventory Capacity 25 | 8 25 25 25 25 25 25 Average Capacity 22 | 7 23 25 25 25 25 11 Most Carried 25 | 3 23 24 22 24 25 25 Average Carried 17 | 2 9 23 18 19 21 11 Final Capacity 25 | 8 25 25 25 25 25 5 Final Carried 25 | 3 23 22 19 23 25 5 Class Distribution -------------------- 73% | Mutant 13% | Tank 8% | Gunner 5% | Scavenger-Mutant Dominant Class ---------------- Mutant | -10/Materials Mutant | -10/Subcaves Mutant | -8/Recycling Mutant | -8/Scraptown Tank | -6/Factory Mutant | -5/Factory Resources | -11 -10 -10 -8 -8 -6 -5 ----------- Run | Yrd Mat Sub Rec Scr Fac Fac Matter Collected 2185 | 195 343 55 91 20 998 483 Remotely 1079 | . . . . . 998 81 Salvage Created 2150 | . 669 100 163 . 972 246 Parts 123 | . 41 9 10 . 48 15 Haulers Intercepted 1 | . . . . . 1 . Recyclers Shooed 6 | . 3 . . . 3 . Parts Field Recycled . | . . . . . . . Retrieved Matter . | . . . . . . . Parts Self-Destructed 18 | . . 18 . . . . Prevented . | . . . . . . . Kills | -11 -10 -10 -8 -8 -6 -5 ------- Run | Yrd Mat Sub Rec Scr Fac Fac Combat Hostiles Destroyed 45 | . 13 4 3 . 20 5 Guns 23 | . 11 4 3 . 3 2 Cannons 12 | . . . . . 9 3 AOE 10 | . 2 . . . 8 . Classes Destroyed 12 | . 5 1 1 . 4 1 Worker 5 | . 2 . . . 2 1 Builder 2 | . . . . . 1 1 Tunneler 1 | . 1 . . . . . Hauler 1 | . . . . . 1 . Recycler 6 | . 4 . . . 2 . Swarmer 18 | . 9 3 . . 6 . Grunt 13 | . 4 . . . 7 2 Brawler 1 | . . . . . . 1 Sentry 5 | . . . 3 . 2 . Hunter 2 | . . . . . 2 . Programmer 5 | . . . . . 3 2 Subdweller 1 | . . 1 . . . . Best Kill Streak 4 | . 4 3 1 . 4 2 Combat Bots Only 4 | . 3 3 1 . 4 1 Max Kills in Single Turn 3 | . 3 1 1 . 3 1 Gunslinging . | . . . . . . . Exploded 2 | . 2 . . . 2 . Melee . | . . . . . . . Uniques/NPCs Destroyed . | . . . . . . . Combat | -11 -10 -10 -8 -8 -6 -5 -------- Run | Yrd Mat Sub Rec Scr Fac Fac Hostile Shots Fired 596 | . 61 102 20 . 219 194 Missed 188 | . 17 44 1 . 82 44 Hits 408 | . 44 58 19 . 137 150 Melee 5 | . . . . . . 5 Projectile 403 | . 44 58 19 . 137 145 Critical Strikes 16 | . . . 2 . 2 12 Damage Taken 5642 | . 394 419 234 . 1541 3054 Core 1377 | . 63 81 47 . 183 1003 Absorbed by Shields 455 | . . . 43 . 308 104 Regen/Repaired (Parts) 186 | . . . . . . 186 Core Remaining (%) 67 | 100 . . . 23 78 . Volleys Fired 168 | . 55 10 16 . 47 40 Largest 3 | . 2 2 2 . 3 3 Hottest 225 | . 60 45 60 . 118 225 Shots Fired 369 | . 109 20 23 . 137 80 Gun 258 | . 108 20 23 . 69 38 Cannon 101 | . . . . . 59 42 Launcher 10 | . 1 . . . 9 . Special . | . . . . . . . Kinetic 324 | . 93 20 16 . 128 67 Thermal 20 | . . . 7 . . 13 Explosive 10 | . 1 . . . 9 . Electromagnetic 15 | . 15 . . . . . Robot Hit Streak 21 | . 8 8 8 . 21 5 Robot Miss Streak 10 | . 3 5 1 . 10 6 Penetration Max . | . . . . . . . Secondary Targets 1 | . 1 . . . . . Max Gunslinging Chain 1 | . 1 . . . . . Shots Hit Robots 243 | . 68 11 17 . 92 55 Core Hits 169 | . 29 7 9 . 93 31 Critical Kills . | . . . . . . . Critical Parts Destroyed . | . . . . . . . Critical Strikes 1 | . . . . . 1 . Blast 1 | . . . . . 1 . Melee Attacks . | . . . . . . . Impact . | . . . . . . . Slashing . | . . . . . . . Piercing . | . . . . . . . Sneak Attacks . | . . . . . . . Combat Hostiles . | . . . . . . . Follow-up Attacks . | . . . . . . . Damage Inflicted 5176 | . 946 120 178 . 2863 1069 Guns 2319 | . 765 120 178 . 718 538 Cannons 1464 | . . . . . 946 518 Explosions 1328 | . 166 . . . 1162 . Melee . | . . . . . . . Ramming 65 | . 15 . . . 37 13 Kinetic 3300 | . 694 120 112 . 1664 710 Thermal 412 | . . . 66 . . 346 Explosive 1241 | . 166 . . . 1075 . Electromagnetic 158 | . 71 . . . 87 . Impact . | . . . . . . . Slashing . | . . . . . . . Piercing . | . . . . . . . Highest Corruption 15 | . . . . . 11 15 Average Corruption 6 | . . . . . 3 10 Corruption Purged . | . . . . . . . Corruption Blocked . | . . . . . . . Effects 51 | . . . . . 20 31 Message Errors 13 | . . . . . 7 6 Matter Fused 10 | . . . . . 3 7 Heat Flow Errors 4 | . . . . . 2 2 Energy Discharges 3 | . . . . . 2 1 Parts Rejected 4 | . . . . . . 4 Data Loss (minor) 8 | . . . . . 3 5 Data Loss (major) 1 | . . . . . 1 . Misfires 3 | . . . . . 1 2 Alerts 1 | . . . . . 1 . Misdirections 4 | . . . . . . 4 Overload Shots 5 | . . . . . . 5 Overflow Damage 20 | . 10 . . . 10 . Projectiles . | . . . . . . . Explosions 20 | . 10 . . . 10 . Melee . | . . . . . . . Knockbacks 38 | . . . . . 24 14 Impact . | . . . . . . . Kinetic 37 | . . . . . 23 14 Secondary 1 | . . . . . 1 . Self-Inflicted Damage 105 | . 26 . . . 73 6 Shots 3 | . 1 . . . 2 . Rammed 6 | . 1 . . . 1 4 Targets Rammed 6 | . 1 . . . 1 4 Kicked . | . . . . . . . Crushed . | . . . . . . . Highest Temperature 634 | . 6 . 27 . 306 634 Average Temperature 131 | . 6 . 12 . 62 245 Received Heat Transfer 1737 | . 60 252 103 . 175 1147 Effects 31 | . . . . . . 31 Shutdowns 1 | . . . . . . 1 Energy Bleed 2 | . . . . . . 2 Interference 3 | . . . . . . 3 Matter Decay 4 | . . . . . . 4 Short Circuit 2 | . . . . . . 2 Damage (minor) 5 | . . . . . . 5 Damage (major) 13 | . . . . . . 13 Damage (core) 1 | . . . . . . 1 Siege Activations . | . . . . . . . Martial Activations . | . . . . . . . Shielding Activations . | . . . . . . . Robots Disrupted . | . . . . . . . Combat Hostiles . | . . . . . . . Robots Corrupted . | . . . . . . . Combat Hostiles . | . . . . . . . Parts Fried 1 | . . . . . 1 . Impact Corruptions . | . . . . . . . Robots Melted . | . . . . . . . Combat Hostiles . | . . . . . . . Parts Melted . | . . . . . . . Heat Transferred 524 | . . . 150 . . 374 Parts Sabotaged . | . . . . . . . Parts Stolen . | . . . . . . . Parts Stripped . | . . . . . . . Power Chain Reactions . | . . . . . . . Alert | -11 -10 -10 -8 -8 -6 -5 ------- Run | Yrd Mat Sub Rec Scr Fac Fac Maximum Alert Level 1 | . . . . . 1 . Low Security (%) 95 | 100 100 . 100 . 86 100 Level 1 4 | . . . . . 13 . Level 2 . | . . . . . . . Level 3 . | . . . . . . . Level 4 . | . . . . . . . Level 5 . | . . . . . . . High Security . | . . . . . . . Max Security . | . . . . . . . Peak Influence 236 | . 115 . 78 . 236 105 Initial 105 | . . . 52 . . 105 Average 35 | . 41 . 15 . 60 25 Influence Increases 1772 | . 370 180 210 . 654 358 Destroy 0b10 Robot/C 880 | . 260 60 60 . 400 100 Destroy 0b10 Robot/NC 75 | . 35 . . . 30 10 Destroy Leader 172 | . 60 . . . 92 20 Successful Hack 17 | . 5 . . . . 12 Select Force Hacks 180 | . . . 150 . 30 . Disable Machine 45 | . . . . . 45 . Destroy Structure 58 | . 10 . . . 42 6 Lose Combat Pursuer 345 | . . 120 . . 15 210 Influence Decreases 1733 | . 365 75 301 19 438 535 Entered New Map 191 | . . 3 58 19 . 111 Time Decay 1294 | . 335 32 241 . 388 298 Lost Part 248 | . 30 40 2 . 50 126 Squads Dispatched 12 | . 4 . . . 6 2 Investigation 5 | . 2 . . . 2 1 Extermination 4 | . . . . . 3 1 Reinforcement 3 | . 2 . . . 1 . Assault . | . . . . . . . Garrison . | . . . . . . . Intercept . | . . . . . . . Searches Triggered . | . . . . . . . Construction Impeded . | . . . . . . . Haulers Reinforced . | . . . . . . . Active Scanning Responses . | . . . . . . . Cargo Convoy Interrupts . | . . . . . . . Stealth | -11 -10 -10 -8 -8 -6 -5 --------- Run | Yrd Mat Sub Rec Scr Fac Fac Distress Signals 6 | . 2 . . . 1 3 Communications Jammed . | . . . . . . . Distress Signals . | . . . . . . . Times Spotted 91 | . 24 10 3 . 25 29 Peak Tracking Total 6 | . 5 5 1 . 5 6 Tactical Retreats 12 | . . 3 . . 1 8 Traps | -11 -10 -10 -8 -8 -6 -5 ------- Run | Yrd Mat Sub Rec Scr Fac Fac Traps Triggered 4 | . 1 . . . 2 1 Indirectly . | . . . . . . . Trap Hack Attempts . | . . . . . . . Triggered . | . . . . . . . Disarmed . | . . . . . . . Reprogrammed . | . . . . . . . Reused . | . . . . . . . Traps Extracted . | . . . . . . . Installed . | . . . . . . . Triggered . | . . . . . . . Machines | -11 -10 -10 -8 -8 -6 -5 ---------- Run | Yrd Mat Sub Rec Scr Fac Fac Machines Disabled 3 | . . . . . 3 . Max in Single Turn 2 | . . . . . 2 . Machines Repaired . | . . . . . . . Machines Dismantled . | . . . . . . . Machines Sabotaged . | . . . . . . . Overloaded Fab Kills . | . . . . . . . Hacking | -11 -10 -10 -8 -8 -6 -5 --------- Run | Yrd Mat Sub Rec Scr Fac Fac Machines Accessed 12 | . 1 . 5 2 2 2 Terminals 3 | . 1 . . . 1 1 Fabricators . | . . . . . . . Repair Stations 1 | . . . . . . 1 Recycling Units 6 | . . . 5 . 1 . Scanalyzers . | . . . . . . . Garrison Access . | . . . . . . . Total Hacks 23 | . 2 . 7 8 3 3 Successful 17 | . 1 . 5 8 1 2 Failed 6 | . 1 . 2 . 2 1 Catastrophic . | . . . . . . . Database Lockouts . | . . . . . . . Manual 13 | . 2 . 7 . 1 3 Terminals 6 | . 2 . . . 2 2 Fabricators . | . . . . . . . Repair Stations 1 | . . . . . . 1 Recycling Units 8 | . . . 7 . 1 . Scanalyzers . | . . . . . . . Garrison Access . | . . . . . . . Terminal Hacks 8 | . . . . 8 . . Record 8 | . . . . 8 . . Fabricator Hacks . | . . . . . . . Repair Station Hacks . | . . . . . . . Recycling Unit Hacks . | . . . . . . . Scanalyzer . | . . . . . . . Garrison Access Hacks . | . . . . . . . Unauthorized Hacks 9 | . 1 . 5 . 1 2 Terminals 2 | . 1 . . . . 1 Botnet 2 | . 1 . . . . 1 Fabricators . | . . . . . . . Repair Stations 1 | . . . . . . 1 Patch 1 | . . . . . . 1 Recycling Units 6 | . . . 5 . 1 . Tunnel 6 | . . . 5 . 1 . Scanalyzers . | . . . . . . . Garrison Access . | . . . . . . . Data Cores Recovered . | . . . . . . . Used . | . . . . . . . Hacking Detections 3 | . 1 . . . 1 1 Full Trace Events 2 | . 1 . . . 1 . Feedback Events . | . . . . . . . Feedback Blocked . | . . . . . . . Robot Schematics Acquired . | . . . . . . . Robots Built . | . . . . . . . Authchips . | . . . . . . . Time . | . . . . . . . Total Robot Build Rating . | . . . . . . . Part Schematics Acquired . | . . . . . . . Parts Built . | . . . . . . . Authchips . | . . . . . . . Time . | . . . . . . . Total Part Build Rating . | . . . . . . . Parts Repaired . | . . . . . . . Time . | . . . . . . . Parts Recycled . | . . . . . . . Recycled Matter . | . . . . . . . Retrieved Matter . | . . . . . . . Retrieved Components . | . . . . . . . Parts Scanalyzed . | . . . . . . . Part Schematics Acquired . | . . . . . . . Parts Damaged . | . . . . . . . Bothacking | -11 -10 -10 -8 -8 -6 -5 ------------ Run | Yrd Mat Sub Rec Scr Fac Fac Used RIF Installer . | . . . . . . . Robots Hacked . | . . . . . . . Non-combat . | . . . . . . . Combat . | . . . . . . . Robot Hacks Applied . | . . . . . . . Relay Couplers Released . | . . . . . . . Fabnet Peak Effective % . | . . . . . . . Robots Rewired . | . . . . . . . Allies Hacked . | . . . . . . . Hacks Repelled . | . . . . . . . Allies | -11 -10 -10 -8 -8 -6 -5 -------- Run | Yrd Mat Sub Rec Scr Fac Fac Total Allies . | . . . . . . . Largest Group . | . . . . . . . Highest-Rated Group . | . . . . . . . Highest-Rated Ally . | . . . . . . . Total Orders . | . . . . . . . Ally Attacks . | . . . . . . . Total Damage . | . . . . . . . Kills . | . . . . . . . Allies Corrupted . | . . . . . . . Allies Melted . | . . . . . . . Intel | -11 -10 -10 -8 -8 -6 -5 ------- Run | Yrd Mat Sub Rec Scr Fac Fac Active Infowar (turns) 435 | . . . . . 135 300 IFF 433 | . . . . . 135 298 Terrain 2 | . . . . . . 2 Robot Analysis Total . | . . . . . . . Derelict Logs Recovered . | . . . . . . . Drone Launches . | . . . . . . . Drone Recoveries . | . . . . . . . Exploration | -11 -10 -10 -8 -8 -6 -5 ------------- Run | Yrd Mat Sub Rec Scr Fac Fac Turns Passed 7924 | 118 895 240 1611 2580 1515 965 Spaces Moved 4835 | 71 475 147 959 1458 784 941 Core 411 | 3 . . . . . 408 Treads 230 | 64 53 . . . 90 23 Legs . | . . . . . . . Wheels 3768 | 4 422 147 959 1458 694 84 Hover 426 | . . . . . . 426 Flight . | . . . . . . . Fastest Speed 50 | 50 140 140 135 135 135 50 Average Speed 147 | 150 144 142 163 175 167 76 Slowest Speed 650 | 160 200 200 175 190 650 233 Overloaded Moves . | . . . . . . . Propulsion Burnouts . | . . . . . . . Robots Hopped . | . . . . . . . Potential Cave-ins . | . . . . . . . Cave-ins Triggered . | . . . . . . . Exploration Rate (%) 36 | 4 38 10 96 75 21 8 Regions Visited 6 Branch Regions 3 Pre-discovered Areas 6 | . . . 5 . 1 . Known Exits Taken . | . . . . . . . Unknown Exits Taken 6 | 1 1 1 1 1 1 . Scrap Searched 4 | . . . . 4 . . Spaces Dug . | . . . . . . . Terrain Destroyed 57 | . 9 . . . 46 2 Melee . | . . . . . . . Projectile 4 | . . . . . 3 1 AOE 52 | . 9 . . . 43 . Terrain Rammed . | . . . . . . . Walls Destroyed . | . . . . . . . Machines Disabled . | . . . . . . . Actions | -11 -10 -10 -8 -8 -6 -5 --------- Run | Yrd Mat Sub Rec Scr Fac Fac Total 5285 | 79 579 161 985 1479 882 1120 Wait 120 | . 16 . . . . 104 Move 4829 | 70 474 146 958 1457 783 941 Hop . | . . . . . . . Pick Up 52 | 3 23 1 2 10 11 2 Fast Attach 33 | 6 4 . 3 . 6 14 Attach 29 | . 2 3 5 1 9 9 Detach 1 | . . . . . . 1 Swap 17 | . 2 1 . 3 11 . Drop 22 | . 2 . 1 8 6 5 Fire 168 | . 55 10 16 . 47 40 Melee . | . . . . . . . Ram 6 | . 1 . . . 1 4 Kick . | . . . . . . . Crush . | . . . . . . . Escape Stasis 8 | . . . . . 8 . Rewire . | . . . . . . . Trap . | . . . . . . . Miscellaneous . | . . . . . . . Route ------- -11/Scrapyard -10/Materials (discovered 2 exits: [*Mat] / [*Sub]) -10/Subcaves -8/Recycling (discovered 2 exits: *Fac / *Scr) -8/Scraptown -6/Factory -5/Factory History --------- Turn | Location | Event 35 | -11/Scrapyard | Discovered new exit (range 16) 119 | -11/Scrapyard | Entered Materials 304 | -10/Materials | Build established: Mutant 314 | -10/Materials | Discovered new exit (range 9) 462 | -10/Materials | Discovered new exit (range 16) 1014 | -10/Materials | Entered Subcaves 1015 | -10/Subcaves | Approached by a straggling Scientist 1164 | -10/Subcaves | A swath of the cavern ceiling suddenly collapsed 1231 | -10/Subcaves | Discovered new exit (range 15) 1248 | -10/Subcaves | Core integrity fell below 50% 1254 | -10/Subcaves | Entered Recycling 1605 | -8/Recycling | Build established: Scavenger-Mutant 1711 | -8/Recycling | Lost 3 parts (1n2w) 1728 | -8/Recycling | Discovered new exit (range 16) 1969 | -8/Recycling | Build established: Mutant 2807 | -8/Recycling | Scanned before Scraplab entrance 2834 | -8/Recycling | Entered Scraplab 2860 | -8/Recycling | Discovered new exit (range 3) 2865 | -8/Recycling | Entered Scraptown 3173 | -8/Scraptown | Visited IN-MT5's Study 3251 | -8/Scraptown | Visited UFD Registry 3251 | -8/Scraptown | Registered with UFD as "Gammacore" 3292 | -8/Scraptown | Visited TADAMA 3715 | -8/Scraptown | Visited Symbiants 4359 | -8/Scraptown | Visited Science Testing Area 4394 | -8/Scraptown | Visited Chapter 10 4695 | -8/Scraptown | Visited Research Penetration Think Tank 4739 | -8/Scraptown | Visited DA-N13 Charitable Foundation 4762 | -8/Scraptown | Found DCF Scrap (30 items) 4838 | -8/Scraptown | Visited Observation Area 5342 | -8/Scraptown | Met Optimus 5342 | -8/Scraptown | Accepted into 0bPrime 5436 | -8/Scraptown | Discovered new exit (range 5) 5445 | -8/Scraptown | Entered Factory 5445 | -6/Factory | Evolved 8 slots: Propulsion x3, Utility x4, Weapon x1 5873 | -6/Factory | Build established: Tank 6384 | -6/Factory | Build established: Gunner 6892 | -6/Factory | System corruption reached 10% 6939 | -6/Factory | Discovered new exit (range 5) 6960 | -6/Factory | Entered another Factory area 6960 | -5/Factory | Evolved 2 slots: Utility x2 7026 | -5/Factory | Build established: Tank 7283 | -5/Factory | Released all parts (8) 7312 | -5/Factory | Lost 15 parts (1p5n6u3w) 7315 | -5/Factory | Core integrity fell below 50% 7531 | -5/Factory | System corruption reached 10% 7569 | -5/Factory | Build established: Mutant 7592 | -5/Factory | Core integrity fell below 20% 7925 | -5/Factory | Destroyed by G-50 Soldier with Heavy Laser Last Messages --------------- 07846_ System corrupted: Hpw. Shock Rifle rejected. 07846_ W-25 Informer sends out distress signal. 07847_ Slug penetrates U-05 Engineer. 07863_ System corrupted: Matter fused (-6). 07884_ Slug penetrates Wall. 07888_ System corrupted: FCS attempts to trigger Flak Gun. 07888_ System corrupted: Flak Gun misfires. 07892_ Acquired 187 matter. 07896_ Slug penetrates Wall. 07896_ Antigrav System destroyed. 07903_ BDD0RJ&Q#WJU#EKX%TB,ARNLT 07920_ Dropped Flak Gun. 07923_ H-66 Slayer deploys Drone. 07923_ Slug penetrates Wall. 07923_ Drone sends a signal. 07923_ H-66 Slayer retrieves Drone. 07925_ System corrupted: Antigrav System rejected. Map ----- +----------------------------------------------------+ | ????????????????????####### !] # #???? | | ??????????????????????????# ]] # #???? | | ??????????????????????????# # #???? | | ??????????????????????????# + #???? | | ??????????????????????????# |# #???? | | ??????????????????????????# # #???? | | ?????????????????????????############### ##### | | ?????????????????????????# | | ?????????????????????????# | | ?????????????????????????# | | ?????????????????????????# | | ?????????????????????????# | | ?????????????????????????# ############+###### | | ?????????????????????????# #???????# #? | | ?????????????????????????# #???????# """ #? | | ?????????????????????????# #???????#! """ #? | | ?????????????????????????+ #???????# """ #? | | ?????????????????????????# #???????# #? | | ?????????????????????????# g #???????#"" !! #? | | ?????????????????????????# #???????#"Y !! #? | | ?????????????????????????# A##+######"" #? | | ?????????????????????????# h + #? | | ?????????????????????????# g ###############? | | ?????????????????????????# #??????????????? | | ?????????????????+######## #??????????????? | | ????????????????# @ [ #??????????????? | | ????????????????# ########+####+#??????????????? | | ??????????????????????????? ???????????????????? | | ??????????????????????????? ???????????????????? | | ??????????????????????????"""""??????????????????? | | ?????????????????????????? ??????????????????? | | ?????????????????????????"""""" ?????????????????? | | ????????????????????????? ?????????????????? | | ????????????????????????""""""" ????????????????? | | ????????????????????????? ????????????????? | | ????????????????????????????????! ???????????????? | | ????????????????????????????????? ???????????????? | | ?????????????????????????????????????????????????? | | | | | | | | | | | | | | | | | | | | | | | | | +----------------------------------------------------+ Best States ------------- Heat Dissipation 40 Energy Generation 18 Energy Capacity 300 Matter Stores 300 Matter Capacity 350 Sight Range 16 Terrain Scan Density 10 Armor Coverage 600 Evasion (%) 53 Target Analysis 5 Recoil Reduction 3 Offensive Hacking 14 Item Schematics ----------------- None Robot Schematics ------------------ None Fabricated ------------ Nothing Repaired ---------- Nothing Alien Tech Used ----------------- None Achievements -------------- None Challenges ------------ None Game ------ Seed MetafieldMasterRifle Manual? 0 Play Time 00:43:59 Cumulative 95.1 hours Start 2025.06.27 @ 02:07:59 End 2025.06.27 @ 04:57:19 Sessions 1 Manual Loads 0 Difficulty Rogue Special Mode None Game No. 130 Rogue 130 Adventurer 0 Explorer 0 Win Type - Total 1 Types 1/0/0/0/0/0/0/0/0/0 Lore% 38 Gallery% 50 Achievement% 43 Wizard Run 0 Options --------- Layout 1 ASCII 0 Keyboard 0 Movement Arrows Keybinds 0 Fullscreen 1 Font 24/Smallcaps Map View 50x35 Zoom Use 0% Tactical HUD 1 Map Filters NONE Filters NONE Steam X RUN: 782463be-9d38-410b-aec2-1e89c84d1ece